Cogmind - Beta 12 @@@ ROGUE MODE // 2023.03.08 @ 18:07:44 Player: ArabianSandBoa Result: Self-destructed Performance ------------- Evolutions (3) 1500 Regions Visited (9) 1800 Robots Destroyed (63) 315 Value Destroyed (1706) 1706 Prototype IDs (32) 640 Alien Tech Used (0) 0 Bonus (800) 800 TOTAL SCORE: 6761 Bonus ------- Entered DSFs 500 Aligned with FarCom 300 Cogmind --------- Core Integrity 322/700 Matter 151/300 Energy 155/300 System Corruption 0% Temperature Critical (1556) Movement Core (3900) Ox77 Location -7/DSF Parts ------- > --- POWER (1) -------- Angular Momentum Engine > --- PROPULSION (2) --- Armored Huge Wheel > --- UTILITY (8) ------ Advanced Heat Sink Cooling System Humpback Advanced Targeting Computer Target Analyzer Improved Power Shielding Improved Propulsion Shielding > --- WEAPON (2) ------- Heavy Particle Cannon Heavy Particle Cannon > --- INVENTORY (35) --- Light Deuterium Engine Flexi-carbon Leg Wheel Huge Storage Unit Humpback Structural Scanner Improved Signal Interpreter Improved Terrain Scanner 0b10 Alert Chip Targeting Computer Target Analyzer Core Analyzer Recoil Stabilizer Weapon Cycler Reactive Plating Hacking Suite Hacking Suite Hacking Suite Authchip [R/Combat] Authchip [Power] Authchip [Device] Authchip [Processor] Long-range Tractor Beam Decoy Drone Bay (16/16) Improved EM Pulse Cannon Improved EM Pulse Cannon Plasma Cannon Mini Grenade Launcher Long-range Missile Launcher Long-range Missile Launcher Improved Datajack Heavy Flail Peak State ------------ > --- POWER ------------ Angular Momentum Engine > --- PROPULSION ------- Armored Huge Wheel > --- UTILITY ---------- Advanced Heat Sink Cooling System Humpback Advanced Targeting Computer Target Analyzer Improved Power Shielding Improved Propulsion Shielding > --- WEAPON ----------- Heavy Particle Cannon Heavy Particle Cannon > --- INVENTORY -------- Light Deuterium Engine Flexi-carbon Leg Wheel Huge Storage Unit Humpback Structural Scanner Improved Signal Interpreter Improved Terrain Scanner 0b10 Alert Chip Targeting Computer Target Analyzer Core Analyzer Recoil Stabilizer Weapon Cycler Reactive Plating Hacking Suite Hacking Suite Hacking Suite Authchip [R/Combat] Authchip [Power] Authchip [Device] Authchip [Processor] Long-range Tractor Beam Decoy Drone Bay Improved EM Pulse Cannon Improved EM Pulse Cannon Plasma Cannon Mini Grenade Launcher Long-range Missile Launcher Long-range Missile Launcher Improved Datajack Heavy Flail [Rating: 51] Favorites ----------- Power Light Ion Engine Engine Light Ion Engine Propulsion Wheel Treads Light Treads Leg Aluminum Leg Wheel Wheel Utility Targeting Computer Device Heat Sink Storage Huge Storage Unit Processor Targeting Computer Protection Reactive Plating Weapon Medium Laser Energy Gun Medium Laser Energy Cannon Heavy Particle Cannon Ballistic Gun Shotgun Ballistic Cannon Light Cannon Launcher Rocket Launcher Build | -11 -10 -10 -9 -9 -9 -8 -8 -7 -7 ------- Run | Jun Mat Min Mat Min Exi Min Mat Fac DSF Slots Evolved 6 | . . . 2 . . . 2 2 . Power . | . . . . . . . . . . Propulsion . | . . . . . . . . . . Utility 6 | . . . 2 . . . 2 2 . Weapon . | . . . . . . . . . . Parts Attached 90 | . 15 2 9 22 4 2 12 3 21 Power 7 | . 2 . . 2 . . 2 . 1 Engine 7 | . 2 . . 2 . . 2 . 1 Core . | . . . . . . . . . . Reactor . | . . . . . . . . . . Propulsion 32 | . 7 2 7 11 . . 1 . 4 Treads 11 | . 4 . 3 4 . . . . . Leg . | . . . . . . . . . . Wheel 21 | . 3 2 4 7 . . 1 . 4 Hover . | . . . . . . . . . . Flight . | . . . . . . . . . . Utility 27 | . 4 . 2 3 4 1 3 3 7 Device 9 | . . . 1 1 3 . 2 . 2 Storage 5 | . 3 . . . 1 . . . 1 Processor 5 | . 1 . 1 . . . 1 2 . Hackware . | . . . . . . . . . . Protection 8 | . . . . 2 . 1 . 1 4 Artifact . | . . . . . . . . . . Weapon 24 | . 2 . . 6 . 1 6 . 9 Energy Gun 4 | . . . . 1 . . 2 . 1 Energy Cannon 8 | . . . . . . . 2 . 6 Ballistic Gun 7 | . 2 . . 4 . . 1 . . Ballistic Cannon 1 | . . . . 1 . . . . . Launcher 4 | . . . . . . 1 1 . 2 Special Weapon . | . . . . . . . . . . Impact Weapon . | . . . . . . . . . . Slashing Weapon . | . . . . . . . . . . Piercing Weapon . | . . . . . . . . . . Special Melee Weapon . | . . . . . . . . . . Unidentified Prototypes 3 | . . . . . 1 . 2 . . Parts Lost 16 | . . . . 9 . 1 1 . 5 Power 3 | . . . . 2 . 1 . . . Propulsion 4 | . . . . 3 . . . . 1 Utility 5 | . . . . 1 . . 1 . 3 Weapon 4 | . . . . 3 . . . . 1 Highest Loss Streak 3 | . . . . 3 . 1 1 . 2 To Critical Strikes . | . . . . . . . . . . Average Slot Usage (%) 91 | . 96 100 99 97 83 77 86 76 90 Engine 9 | . 14 14 11 10 11 . 8 7 7 Treads 6 | . 20 9 12 3 . . . . . Leg 1 | . 6 . . . . . . . . Wheel 14 | . 1 18 9 18 22 22 18 15 13 Device 7 | . . . 10 11 13 . 8 7 9 Storage 11 | . 16 14 11 11 11 11 9 7 7 Processor 13 | . 8 14 21 13 11 11 18 15 16 Protection 6 | . . . . 9 . 11 9 7 18 Energy Gun 5 | . 7 . . 8 11 11 1 . . Energy Cannon 3 | . . . . . . . 12 7 12 Ballistic Gun 9 | . 20 28 22 12 3 . . 7 . Naked Turns . | . . . . . . . . . . Heaviest Build 239 | 12 91 91 92 99 205 216 225 222 239 Greatest Support 40 | 20 40 32 40 40 20 20 20 20 28 Greatest Overweight (x) 11 | . 4 2 2 4 10 10 11 11 11 Average Overweight (x) 4 | . . 2 2 3 5 10 10 11 10 Largest Inventory Capacity 35 | . 25 25 25 25 35 35 35 35 35 Average Capacity 27 | . 16 25 25 25 28 35 35 35 35 Most Carried 35 | . 20 20 25 25 32 34 35 35 35 Average Carried 24 | . 11 20 21 23 26 31 34 34 32 Final Capacity 35 | 8 25 25 25 25 35 35 35 35 35 Final Carried 35 | 6 20 20 25 25 32 34 35 32 34 Class Distribution -------------------- 42% | Mutant 39% | Hauler-Mutant 18% | Scavenger-Mutant Dominant Class ---------------- Mutant | -10/Materials Mutant | -10/Mines Mutant | -9/Materials Scavenger-Mutant | -9/Mines Hauler-Mutant | -9/Exiles Hauler-Mutant | -8/Mines Hauler-Mutant | -8/Materials Hauler-Mutant | -7/Factory Hauler-Mutant | -7/DSF Resources | -11 -10 -10 -9 -9 -9 -8 -8 -7 -7 ----------- Run | Jun Mat Min Mat Min Exi Min Mat Fac DSF Matter Collected 1884 | 194 354 . 120 759 . 25 201 . 231 Remotely . | . . . . . . . . . . Salvage Created 1935 | . 528 49 156 317 . 93 352 . 440 Parts 125 | . 39 5 18 17 . 2 19 . 25 Haulers Intercepted 1 | . . . 1 . . . . . . Recyclers Shooed 1 | . . . . 1 . . . . . Parts Field Recycled . | . . . . . . . . . . Retrieved Matter . | . . . . . . . . . . Parts Self-Destructed . | . . . . . . . . . . Prevented . | . . . . . . . . . . Kills | -11 -10 -10 -9 -9 -9 -8 -8 -7 -7 ------- Run | Jun Mat Min Mat Min Exi Min Mat Fac DSF Combat Hostiles Destroyed 48 | . 13 3 1 11 . 3 3 . 14 Guns 27 | . 13 3 1 10 . . . . . Cannons 7 | . . . . 1 . . 2 . 4 AOE 14 | . . . . . . 3 1 . 10 Classes Destroyed 12 | . 6 . 2 2 . . . . 2 Worker 3 | . 2 . . . . . 1 . . Builder 3 | . 1 . 2 . . . . . . Hauler 1 | . . . 1 . . . . . . Recycler 3 | . 1 . . . . . 2 . . Watcher 5 | . 1 . 2 . . . 2 . . Swarmer 17 | . 6 3 . 4 . . . . 4 Grunt 21 | . 7 . . 4 . 3 1 . 6 Brawler 2 | . . . . 1 . . . . 1 Duelist 1 | . . . . 1 . . . . . Sentry 3 | . . . 1 . . . 2 . . Specialist 2 | . . . . . . . . . 2 Heavy 1 | . . . . . . . . . 1 Best Kill Streak 7 | . 4 3 3 4 . 3 2 . 7 Combat Bots Only 7 | . 3 3 1 4 . 3 1 . 7 Max Kills in Single Turn 4 | . 2 2 2 1 . 2 1 . 4 Gunslinging . | . . . . . . . . . . Exploded 4 | . . . . . . 2 1 . 4 Melee . | . . . . . . . . . . Uniques/NPCs Destroyed 1 | . . . . 1 . . . . . YI-UF0 (-9/Mines) Combat | -11 -10 -10 -9 -9 -9 -8 -8 -7 -7 -------- Run | Jun Mat Min Mat Min Exi Min Mat Fac DSF Damage Taken 3635 | . 387 55 . 1394 . 84 284 . 1431 Core 750 | . 90 . . 228 . 14 40 . 378 Absorbed by Shields . | . . . . . . . . . . Redirected to Shielding 87 | . . . . . . . . . 87 Core Remaining (%) 73 | 100 . 64 . . . 39 92 . . Volleys Fired 157 | . 38 3 12 50 . 3 19 . 32 Largest 2 | . 2 2 2 2 . 1 2 . 2 Hottest 150 | . 70 46 46 70 . 33 123 . 150 Shots Fired 282 | . 76 6 24 87 . 3 36 . 50 Gun 190 | . 76 6 24 79 . . 3 . 2 Cannon 78 | . . . . 8 . . 30 . 40 Launcher 14 | . . . . . . 3 3 . 8 Special . | . . . . . . . . . . Kinetic 130 | . 48 6 24 52 . . . . . Thermal 120 | . 28 . . 35 . . 19 . 38 Explosive 14 | . . . . . . 3 3 . 8 Electromagnetic 18 | . . . . . . . 14 . 4 Robot Hit Streak 17 | . 8 3 5 15 . 2 9 . 17 Robot Miss Streak 4 | . 4 4 4 4 . 1 1 . 3 Penetration Max . | . . . . . . . . . . Secondary Targets 2 | . 1 . . 1 . . . . . Max Gunslinging Chain 1 | . 1 . . 1 . . . . . Shots Hit Robots 209 | . 54 4 13 68 . 2 28 . 40 Core Hits 108 | . 28 3 9 24 . 5 12 . 27 Critical Kills 1 | . . . 1 . . . . . . Critical Parts Destroyed . | . . . . . . . . . . Critical Strikes 5 | . 2 . 1 1 . . 1 . . Burn 4 | . 2 . . 1 . . 1 . . Destroy 1 | . . . 1 . . . . . . Melee Attacks . | . . . . . . . . . . Impact . | . . . . . . . . . . Slashing . | . . . . . . . . . . Piercing . | . . . . . . . . . . Sneak Attacks . | . . . . . . . . . . Combat Hostiles . | . . . . . . . . . . Follow-up Attacks . | . . . . . . . . . . Damage Inflicted 4644 | . 721 86 198 904 . 282 624 . 1829 Guns 1852 | . 721 86 198 776 . . 37 . 34 Cannons 1424 | . . . . 128 . . 472 . 824 Explosions 1368 | . . . . . . 282 115 . 971 Melee . | . . . . . . . . . . Ramming . | . . . . . . . . . . Kinetic 1316 | . 446 86 198 586 . . . . . Thermal 1657 | . 275 . . 318 . . 289 . 775 Explosive 1328 | . . . . . . 282 75 . 971 Electromagnetic 343 | . . . . . . . 260 . 83 Impact . | . . . . . . . . . . Slashing . | . . . . . . . . . . Piercing . | . . . . . . . . . . Highest Corruption . | . . . . . . . . . . Average Corruption . | . . . . . . . . . . Corruption Purged . | . . . . . . . . . . Corruption Blocked . | . . . . . . . . . . Overload Shots . | . . . . . . . . . . Overflow Damage 48 | . . . . . . . 27 . 21 Projectiles 21 | . . . . . . . . . 21 Explosions 27 | . . . . . . . 27 . . Melee . | . . . . . . . . . . Knockbacks . | . . . . . . . . . . Impact . | . . . . . . . . . . Kinetic . | . . . . . . . . . . Secondary . | . . . . . . . . . . Self-Inflicted Damage 33 | . . . . . . . . . 33 Shots 3 | . . . . . . . . . 3 Rammed . | . . . . . . . . . . Targets Rammed . | . . . . . . . . . . Kicked . | . . . . . . . . . . Crushed . | . . . . . . . . . . Highest Temperature 1556 | . 126 . . 52 . 12 262 . 1556 Average Temperature 130 | . 47 . . 22 . 9 76 . 268 Received Heat Transfer 717 | . 180 . . 168 . 45 90 . 234 Effects 11 | . . . . . . . . . 11 Energy Bleed 2 | . . . . . . . . . 2 Interference 1 | . . . . . . . . . 1 Matter Decay 2 | . . . . . . . . . 2 Short Circuit 3 | . . . . . . . . . 3 Damage (minor) 1 | . . . . . . . . . 1 Damage (core) 2 | . . . . . . . . . 2 Siege Activations . | . . . . . . . . . . Robots Corrupted . | . . . . . . . . . . Combat Hostiles . | . . . . . . . . . . Parts Fried 1 | . . . . . . . 1 . . Impact Corruptions . | . . . . . . . . . . Robots Melted . | . . . . . . . . . . Combat Hostiles . | . . . . . . . . . . Parts Melted 6 | . 4 . . 1 . . . . 1 Heat Transferred 3787 | . 962 . . 999 . . 679 . 1147 Parts Sabotaged . | . . . . . . . . . . Parts Stolen . | . . . . . . . . . . Parts Stripped . | . . . . . . . . . . Power Chain Reactions 1 | . . . . . . . 1 . . Missiles Intercepted . | . . . . . . . . . . Alert | -11 -10 -10 -9 -9 -9 -8 -8 -7 -7 ------- Run | Jun Mat Min Mat Min Exi Min Mat Fac DSF Peak Influence 358 | . 177 70 138 115 . 86 120 44 358 Initial 39 | . . . 27 5 . . 33 39 30 Average 80 | . 72 59 72 44 . 85 61 39 204 Maximum Alert Level 1 | . . . . . . . . . 1 Low Security (%) 93 | . 100 100 100 100 . 100 100 100 46 Level 1 6 | . . . . . . . . . 53 Level 2 . | . . . . . . . . . . Level 3 . | . . . . . . . . . . Level 4 . | . . . . . . . . . . Level 5 . | . . . . . . . . . . High Security . | . . . . . . . . . . Max Security . | . . . . . . . . . . Sterilizations 1 | . . . . . . . . . 1 Squads Dispatched 6 | . 3 . 1 . . . . . 2 Investigation 4 | . 3 . 1 . . . . . . Extermination . | . . . . . . . . . . Reinforcement 2 | . . . . . . . . . 2 Assault . | . . . . . . . . . . Garrison . | . . . . . . . . . . Intercept . | . . . . . . . . . . Searches Triggered . | . . . . . . . . . . Construction Impeded . | . . . . . . . . . . Haulers Reinforced . | . . . . . . . . . . Active Scanning Responses . | . . . . . . . . . . Cargo Convoy Interrupts . | . . . . . . . . . . Stealth | -11 -10 -10 -9 -9 -9 -8 -8 -7 -7 --------- Run | Jun Mat Min Mat Min Exi Min Mat Fac DSF Distress Signals 3 | . 1 . . . . . 2 . . Communications Jammed . | . . . . . . . . . . Distress Signals . | . . . . . . . . . . Times Spotted 68 | . 18 5 6 16 . 3 5 . 15 Peak Tracking Total 12 | . 4 3 2 12 . 3 2 . 7 Tactical Retreats 2 | . . . . 1 . . . . 1 Traps | -11 -10 -10 -9 -9 -9 -8 -8 -7 -7 ------- Run | Jun Mat Min Mat Min Exi Min Mat Fac DSF Traps Triggered 4 | . 2 . 1 . . . 1 . . Indirectly . | . . . . . . . . . . Trap Hack Attempts . | . . . . . . . . . . Triggered . | . . . . . . . . . . Disarmed . | . . . . . . . . . . Reprogrammed . | . . . . . . . . . . Reused . | . . . . . . . . . . Traps Extracted . | . . . . . . . . . . Installed . | . . . . . . . . . . Triggered . | . . . . . . . . . . Exploded 2 | . . . . . . . . . 2 Machines | -11 -10 -10 -9 -9 -9 -8 -8 -7 -7 ---------- Run | Jun Mat Min Mat Min Exi Min Mat Fac DSF Machines Disabled 1 | . . . . . . . 1 . . Max in Single Turn 1 | . . . . . . . 1 . . Machines Repaired . | . . . . . . . . . . Machines Sabotaged . | . . . . . . . . . . Overloaded Fab Kills . | . . . . . . . . . . Hacking | -11 -10 -10 -9 -9 -9 -8 -8 -7 -7 --------- Run | Jun Mat Min Mat Min Exi Min Mat Fac DSF Machines Accessed 10 | . 5 . 3 . 1 . . 1 . Terminals 7 | . 3 . 3 . . . . 1 . Fabricators . | . . . . . . . . . . Repair Stations . | . . . . . . . . . . Recycling Units 2 | . 2 . . . . . . . . Scanalyzers . | . . . . . . . . . . Garrison Access . | . . . . . . . . . . Total Hacks 24 | . 9 . 11 . 1 . . 3 . Successful 14 | . 6 . 6 . 1 . . 1 . Failed 9 | . 3 . 4 . . . . 2 . Catastrophic 4 | . 2 . 2 . . . . . . Database Lockouts 1 | . . . 1 . . . . . . Manual 8 | . . . 7 . 1 . . . . Terminals 21 | . 7 . 11 . . . . 3 . Fabricators . | . . . . . . . . . . Repair Stations . | . . . . . . . . . . Recycling Units 2 | . 2 . . . . . . . . Scanalyzers . | . . . . . . . . . . Garrison Access . | . . . . . . . . . . Terminal Hacks 10 | . 4 . 4 . 1 . . 1 . Robot Analysis 1 | . . . 1 . . . . . . Prototype ID Bank 4 | . 2 . 2 . . . . . . Open DSF 1 | . . . . . . . . 1 . Unreport Threat 1 | . 1 . . . . . . . . Registered Components 1 | . 1 . . . . . . . . Zone Layout 1 | . . . 1 . . . . . . EX-Prototype ID Bank 1 | . . . . . 1 . . . . Fabricator Hacks . | . . . . . . . . . . Repair Station Hacks . | . . . . . . . . . . Recycling Unit Hacks 2 | . 2 . . . . . . . . Report Inventory 2 | . 2 . . . . . . . . Scanalyzer . | . . . . . . . . . . Garrison Access Hacks . | . . . . . . . . . . Unauthorized Hacks 2 | . . . 2 . . . . . . Terminals 2 | . . . 2 . . . . . . Botnet 2 | . . . 2 . . . . . . Fabricators . | . . . . . . . . . . Repair Stations . | . . . . . . . . . . Recycling Units . | . . . . . . . . . . Scanalyzers . | . . . . . . . . . . Garrison Access . | . . . . . . . . . . Data Cores Recovered . | . . . . . . . . . . Used . | . . . . . . . . . . Hacking Detections 8 | . 5 . 3 . . . . . . Full Trace Events 2 | . 1 . 1 . . . . . . Feedback Events . | . . . . . . . . . . Feedback Blocked . | . . . . . . . . . . Robot Schematics Acquired . | . . . . . . . . . . Robots Built . | . . . . . . . . . . Authchips . | . . . . . . . . . . Time . | . . . . . . . . . . Total Robot Build Rating . | . . . . . . . . . . Part Schematics Acquired . | . . . . . . . . . . Parts Built . | . . . . . . . . . . Authchips . | . . . . . . . . . . Time . | . . . . . . . . . . Total Part Build Rating . | . . . . . . . . . . Parts Repaired . | . . . . . . . . . . Time . | . . . . . . . . . . Parts Recycled . | . . . . . . . . . . Recycled Matter . | . . . . . . . . . . Retrieved Matter . | . . . . . . . . . . Retrieved Components . | . . . . . . . . . . Parts Scanalyzed . | . . . . . . . . . . Part Schematics Acquired . | . . . . . . . . . . Parts Damaged . | . . . . . . . . . . Bothacking | -11 -10 -10 -9 -9 -9 -8 -8 -7 -7 ------------ Run | Jun Mat Min Mat Min Exi Min Mat Fac DSF Used RIF Installer . | . . . . . . . . . . Robots Hacked . | . . . . . . . . . . Non-combat . | . . . . . . . . . . Combat . | . . . . . . . . . . Robot Hacks Applied . | . . . . . . . . . . Relay Couplers Released . | . . . . . . . . . . Fabnet Peak Effective % . | . . . . . . . . . . Robots Rewired . | . . . . . . . . . . Allies Hacked . | . . . . . . . . . . Hacks Repelled . | . . . . . . . . . . Allies | -11 -10 -10 -9 -9 -9 -8 -8 -7 -7 -------- Run | Jun Mat Min Mat Min Exi Min Mat Fac DSF Total Allies . | . . . . . . . . . . Largest Group . | . . . . . . . . . . Highest-Rated Group . | . . . . . . . . . . Highest-Rated Ally . | . . . . . . . . . . Total Orders . | . . . . . . . . . . Ally Attacks . | . . . . . . . . . . Total Damage . | . . . . . . . . . . Kills . | . . . . . . . . . . Allies Corrupted . | . . . . . . . . . . Allies Melted . | . . . . . . . . . . Intel | -11 -10 -10 -9 -9 -9 -8 -8 -7 -7 ------- Run | Jun Mat Min Mat Min Exi Min Mat Fac DSF Robot Analysis Total 1 | . . . 1 . . . . . . Derelict Logs Recovered 2 | . . . . 2 . . . . . Drone Launches . | . . . . . . . . . . Drone Recoveries . | . . . . . . . . . . Exploration | -11 -10 -10 -9 -9 -9 -8 -8 -7 -7 ------------- Run | Jun Mat Min Mat Min Exi Min Mat Fac DSF Turns Passed 4589 | . 934 28 467 994 578 314 742 26 506 Spaces Moved 1984 | 1 421 13 196 497 344 132 222 9 149 Core . | . . . . . . . . . . Treads 375 | . 287 . 70 18 . . . . . Legs 110 | 1 109 . . . . . . . . Wheels 1499 | . 25 13 126 479 344 132 222 9 149 Hover . | . . . . . . . . . . Flight . | . . . . . . . . . . Fastest Speed 120 | 120 120 130 130 130 140 230 230 245 220 Average Speed 183 | 120 177 130 197 146 162 230 240 245 236 Slowest Speed 320 | 120 320 130 320 320 230 230 245 245 245 Overloaded Moves . | . . . . . . . . . . Propulsion Burnouts . | . . . . . . . . . . Robots Hopped . | . . . . . . . . . . Cave-ins Triggered . | . . . . . . . . . . Exploration Rate (%) 47 | 2 64 9 19 93 70 58 26 . 88 Regions Visited 9 Branch Regions 4 Pre-discovered Areas . | . . . . . . . . . . Known Exits Taken 2 | . . . 1 . . . . 1 . Unknown Exits Taken 7 | 1 1 1 . 1 1 1 1 . . Scrap Searched 3 | . . . . 2 . 1 . . . Spaces Dug . | . . . . . . . . . . Terrain Destroyed 83 | . . . . . . 19 33 . 31 Melee . | . . . . . . . . . . Projectile 1 | . . . . . . . . . 1 AOE 82 | . . . . . . 19 33 . 30 Terrain Rammed . | . . . . . . . . . . Walls Destroyed . | . . . . . . . . . . Machines Disabled . | . . . . . . . . . . Actions | -11 -10 -10 -9 -9 -9 -8 -8 -7 -7 --------- Run | Jun Mat Min Mat Min Exi Min Mat Fac DSF Total 2658 | . 531 17 251 680 370 140 401 13 255 Wait 264 | . 27 . 15 89 . . 117 . 16 Move 1976 | . 420 12 195 496 343 131 221 9 149 Hop . | . . . . . . . . . . Pick Up 96 | . 21 . 13 15 10 4 14 . 19 Fast Attach 16 | . 3 . . 2 3 . 5 . 3 Attach 33 | . . . 2 11 1 2 6 3 8 Detach 7 | . . . . 1 2 . 3 . 1 Swap 41 | . 12 2 7 9 . . 1 . 10 Drop 68 | . 10 . 7 7 11 . 15 1 17 Fire 157 | . 38 3 12 50 . 3 19 . 32 Melee . | . . . . . . . . . . Ram . | . . . . . . . . . . Kick . | . . . . . . . . . . Crush . | . . . . . . . . . . Escape Stasis . | . . . . . . . . . . Rewire . | . . . . . . . . . . Trap . | . . . . . . . . . . Miscellaneous . | . . . . . . . . . . Route ------- -11/Junkyard -10/Materials (discovered 2 exits: *Mat / [*Min]) -10/Mines -9/Materials -9/Mines (discovered 3 exits: *Mat x2 / *Exi) -9/Exiles -8/Mines -8/Materials -7/Factory -7/DSF History --------- Turn | Location | Event 1 | -11/Junkyard | Discovered new exit (range 0) 1 | -11/Junkyard | Entered Materials 306 | -10/Materials | Build established: Mutant 463 | -10/Materials | Discovered new exit (range 16) 652 | -10/Materials | Discovered new exit (range 8) 935 | -10/Materials | Entered Mines 951 | -10/Mines | Discovered new exit (range 9) 963 | -10/Mines | Entered Materials 963 | -9/Materials | Evolved 2 slots: Utility x2 1201 | -9/Materials | Central database locked down 1410 | -9/Materials | Discovered new exit (range 14) 1429 | -9/Materials | Identified exit to Mines 1430 | -9/Materials | Entered Mines 1638 | -9/Mines | Found the Drone Emporium 1644 | -9/Mines | Destroyed YI-UF0 1659 | -9/Mines | Found Prototype Device 1674 | -9/Mines | Lost 3 parts (1p1n1w) 1747 | -9/Mines | Lost 3 parts (1u2w) 1751 | -9/Mines | Learned location of 1 exit from Lower Caves 1771 | -9/Mines | Learned Materials terminal intel 1775 | -9/Mines | Assembled infested the area 1868 | -9/Mines | Core integrity fell below 50% 2090 | -9/Mines | Build established: Scavenger-Mutant 2114 | -9/Mines | Discovered new exit (range 11) 2323 | -9/Mines | Discovered new exit (range 6) 2412 | -9/Mines | Discovered new exit (range 6) 2424 | -9/Mines | Entered Exiles 2448 | -9/Exiles | Identified Decoy Drone Bay 2481 | -9/Exiles | Met 8R-AWN 2502 | -9/Exiles | Met EX-HEX 2540 | -9/Exiles | Met EX-BIN 2556 | -9/Exiles | Aligned with FarCom system 2558 | -9/Exiles | Given EX-Vault access code 2591 | -9/Exiles | Opened EX-Vault 2603 | -9/Exiles | Found Supersonic Drone Bay 2606 | -9/Exiles | Found 0b10 Alert Chip 2637 | -9/Exiles | Warned to stay clear of 0b10 Research branches 2676 | -9/Exiles | Met EX-DEC 2979 | -9/Exiles | Discovered new exit (range 11) 3002 | -9/Exiles | Left Exiles lab with 0b10 Alert Chip 3002 | -9/Exiles | Entered Mines 3106 | -8/Mines | Build established: Hauler-Mutant 3302 | -8/Mines | Discovered new exit (range 3) 3316 | -8/Mines | Entered Materials 3316 | -8/Materials | Evolved 2 slots: Utility x2 3317 | -8/Materials | Loaded intel: 10 terminal locations 3953 | -8/Materials | Discovered new exit (range 13) 4058 | -8/Materials | Entered Factory 4058 | -7/Factory | Evolved 2 slots: Utility x2 4081 | -7/Factory | Identified exit to DSF 4084 | -7/Factory | Entered DSF 4179 | -7/DSF | Additional patrols routed to DSF 4386 | -7/DSF | Sterilization system engaged 4406 | -7/DSF | Ambient heat levels rising (+10) 4419 | -7/DSF | Destroyed 7 combat bots 4421 | -7/DSF | Ambient heat levels rising (+10) 4436 | -7/DSF | Ambient heat levels rising (+10) 4451 | -7/DSF | Ambient heat levels rising (+10) 4466 | -7/DSF | Ambient heat levels rising (+10) 4481 | -7/DSF | Ambient heat levels rising (+10) 4496 | -7/DSF | Ambient heat levels rising (+10) 4511 | -7/DSF | Ambient heat levels rising (+10) 4526 | -7/DSF | Ambient heat levels rising (+10) 4541 | -7/DSF | Ambient heat levels rising (+10) 4556 | -7/DSF | Ambient heat levels rising (+10) 4571 | -7/DSF | Ambient heat levels rising (+10) 4585 | -7/DSF | Core integrity fell below 50% 4586 | -7/DSF | Ambient heat levels rising (+10) 4590 | -7/DSF | Self-destructed Last Messages --------------- 04528_ Acquired Arm. Huge Wheel. 04541_ ALERT: Ambient heat levels +10. 04558_ Acquired 48 matter. 04563_ Overheating: Energy bleed (-59). 04567_ Overheating: Matter decay (-51). 04569_ Overheating: Core damaged (-126). 04571_ ALERT: Ambient heat levels +10. 04578_ Overheating: Matter decay (-24). 04581_ Hvy. Particle Cannon broken. 04581_ Overheating: Short circuit. 04582_ Overheating: System interference. 04582_ Cooling System temporarily disabled. 04584_ Overheating: Humpback damaged (-124). 04585_ Overheating: Core damaged (-70). 04586_ Target Analyzer broken. 04586_ Overheating: Short circuit. 04586_ ALERT: Ambient heat levels +10. 04587_ Overheating: Energy bleed (-29). 04590_ Arm. Huge Wheel broken. 04590_ Overheating: Short circuit. Map ----- +----------------------------------------------------+ | | | | | | | | | | | | | | | | | | | | | | | | | | | | | | | ???????????????????????????????????????????????? | | ???????????????????????????????????????????????? | | ???????????????????????????????????????????????? | | ???????????????????????????????????????????????? | | ???????????????????????????????????????????????? | | ???????????????????????????????????????????????? | | ????????????????????#########??????????????????? | | ????????????????????#!!!!! #?###??????????????? | | ????????????????????#!!!!! # # ##"?????????? | | ????????????????????# ????????? | | ????????????????????# @ ????????? | | ????????????????????### ###]]]#????? "??????? | | ????????????????????### ###????????? #??????? | | ????????????????????# #????????# #??????? | | ????????????????????# #???????? [??????? | | ????????????????????# #???????? [??????? | | ????????????????????## # #???????## ##?????? | | ????????????????????#** #????????] #?????? | | ????????????????????#** ##???????] #?????? | | ????????????????????#** % #??###??] ??????? | | ??????################ [ #### #### ###????? | | ??????#=== ##!!!#!!!# % #!!!#]]] # ##???? | | ??????#= = ##!!!#!!!## %##!!!#]]] # % ##??? | | ??????#!! !!! =%%[ % #??? | | ??????#!! !! * %[%= !% ###??? | | ??????#! =*] =%== %!# ##?? | | ??????#]] ## #!!!##% %##!! " = [[ #?? | | ??????#]] ## #!!!### ###!!!# #[% [ ###?? | | ??????### ############ ######### [ ##???? | | ???????# **#??????#!! ]#?????##[[[! #????? | | ???????# ^^*#??????#!]! ]#??????#[[ % ##????? | | ???????# ***#??????#!! ]]#??????#[ ##????? | | ???????## ###??????### ###??????##" ""#????? | | ???????# **#??????#! **#??????#][] ##????? | | ???????# **#??????#! **#??????#] ]#?????? | +----------------------------------------------------+ Best States ------------- Heat Dissipation 75 Coolant Potential 50 Energy Generation 18 Energy Capacity 300 Matter Stores 300 Matter Capacity 300 Sight Range 16 Robot Scan Range 14 Terrain Scan Density 10 Armor Coverage 375 Resistance: KI 20 Power Shielding 66 Propulsion Shielding 66 Evasion (%) 50 Targeting Accuracy 13 Target Analysis 5 Recoil Reduction 2 Authchip Count 4 Item Schematics ----------------- None Robot Schematics ------------------ None Fabricated ------------ Nothing Alien Tech Used ----------------- None Achievements -------------- None Challenges ------------ None Game ------ Seed BehemothPlatingRegenerator Manual? 0 Play Time 00:46:02 Cumulative 430.0 hours Start 2023.03.08 @ 16:14:26 End 2023.03.08 @ 18:07:44 Sessions 1 Manual Loads 0 Difficulty Rogue Special Mode None Game No. 487 Rogue 487 Adventurer 0 Explorer 0 Win Type - Total 0 Types 0/0/0/0/0/0/0/0/0 Lore% 59 Gallery% 78 Achievement% 64 Wizard Run 0 Options --------- ASCII 0 Keyboard 0 Movement Mouse Keybinds 0 Fullscreen 2 Font 24/Smallcaps Map View 76x50 Tactical HUD 1 Map Filters NONE Filters NONE Steam 1 RUN: 24fafb02-25a8-41d5-9aba-4321ee06c51f